fUSD/lending_fUSD_20240117
["ID","MTS","AMOUNT","RATE_DAILY","PERIOD"]
[311921249,1705500669751,-500.0,0.00023287,2]
[311921250,1705500669760,-500.0,0.00023287,2]
[311921251,1705500669770,-648.43,0.00023287,2]
[311921252,1705500669779,-719.66,0.00023287,2]
[311921253,1705500669788,-957.33,0.00023287,2]
[311921254,1705500669798,-1329.33,0.00023287,2]
[311921255,1705500669808,-1070.2,0.00023287,2]
[311921256,1705500669818,-500.0,0.00023287,2]
[311921257,1705500669828,-500.0,0.00023287,2]
[311921258,1705500669837,-500.0,0.00023287,2]
[311921259,1705500669847,-500.0,0.00023287,2]
[311921260,1705500669857,-500.0,0.00023287,2]
[311921261,1705500669867,-500.0,0.00023287,2]
[311921262,1705500669876,-701.53,0.00023287,2]
[311921263,1705500669886,-2426.12,0.00023287,5]
[311921264,1705500669896,-408.26,0.00023287,2]
[311921265,1705500669905,-4099.87,0.00023287,2]
[311921266,1705500669915,-931.48,0.00023287,2]
[311921267,1705500669925,-250.52,0.00023287,2]
[311921268,1705500669935,-500.0,0.00023287,2]
[311921269,1705500669944,-500.0,0.00023287,2]
[311921270,1705500669955,-500.0,0.00023287,2]
[311921271,1705500669965,-500.0,0.00023287,2]
[311921272,1705500669975,-500.0,0.00023287,2]
[311921273,1705500669985,-500.0,0.00023287,2]
[311921274,1705500669995,-500.0,0.00023287,2]
[311921275,1705500670005,-500.0,0.00023287,2]
[311921276,1705500670015,-486.52,0.00023287,2]
[311921277,1705500670024,-500.0,0.00023287,2]
[311921278,1705500670033,-500.0,0.00023287,2]
[311921279,1705500670043,-500.0,0.00023287,2]
[311921280,1705500670053,-500.0,0.00023287,2]
[311921281,1705500670062,-500.0,0.00023287,2]
[311921282,1705500670072,-574.27,0.00023287,2]
[311921283,1705500670082,-2043.77,0.00023287,5]
[311921284,1705500670091,-500.0,0.00023287,2]
[311921285,1705500670101,-500.0,0.00023287,2]
[311921286,1705500670111,-500.0,0.00023287,2]
[311921287,1705500670121,-500.0,0.00023287,2]
[311921288,1705500670131,-850.84,0.00023287,2]
[311921289,1705500670141,-433.3,0.00023287,2]
[311921290,1705500670150,-500.0,0.00023287,2]
[311921291,1705500670160,-531.21,0.00023287,2]
[311921292,1705500670169,-959.51,0.00023287,2]
[311921293,1705500670179,-574.36,0.00023287,2]
[311921294,1705500670189,-500.0,0.00023287,2]
[311921295,1705500670199,-1073.97,0.00023287,2]
[311921296,1705500670208,-500.0,0.00023287,2]
[311921297,1705500670218,-500.0,0.00023287,2]
[311921298,1705500670228,-500.0,0.00023287,2]
[311921299,1705500670237,-592.13,0.00023287,2]
[311921300,1705500670247,-239.89,0.00023287,2]
[311921301,1705500670256,-500.0,0.00023287,2]
[311921302,1705500670266,-500.0,0.00023287,2]
[311921303,1705500670275,-333.39,0.00023287,2]
[311921304,1705500670285,-500.0,0.00023287,2]
[311921305,1705500670295,-500.0,0.00023287,2]
[311921306,1705500670305,-500.0,0.00023287,2]
[311921307,1705500670315,-500.0,0.00023287,2]
[311921308,1705500670325,-261.9,0.00023287,2]
[311921309,1705500670335,-500.0,0.00023287,2]
[311921310,1705500670345,-500.0,0.00023287,2]
[311921311,1705500670354,-500.0,0.00023287,2]
[311921312,1705500670364,-500.0,0.00023287,2]
[311921313,1705500670373,-539.24,0.00023287,2]
[311921314,1705500670383,-500.0,0.00023288,4]
[311921315,1705500670393,-479.47091444,0.00023288,4]
[311921316,1705500670402,-500.0,0.00023288,4]
[311921317,1705500670412,-500.0,0.00023288,4]
[311921318,1705500670423,-500.0,0.00023288,2]
[311921319,1705500670432,-451.9673907,0.00023288,2]
[311921320,1705500670442,-500.0,0.00023288,2]
[311921321,1705500670452,-500.0,0.00023288,2]
[311921322,1705500670461,-500.0,0.00023288,2]
[311921323,1705500670471,-500.0,0.00023288,2]
[311921324,1705500670480,-500.0,0.00023288,2]
[311921325,1705500670490,-500.0,0.00023288,2]
[311921326,1705500670499,-500.0,0.00023288,2]
[311921327,1705500670510,-500.0,0.00023288,2]
[311921328,1705500670520,-500.0,0.00023288,2]
[311921329,1705500670529,-500.0,0.00023288,2]
[311921330,1705500670538,-500.0,0.00023288,2]
[311921331,1705500670548,-500.0,0.00023288,2]
[311921332,1705500670558,-284.07836837,0.00023288,2]
[311921333,1705500670567,-500.0,0.00023288,2]
[311921334,1705500670576,-500.0,0.00023288,2]
[311921335,1705500670586,-500.0,0.00023288,2]
[311921336,1705500670595,-350.0,0.00023288,2]
[311921337,1705500670604,-500.0,0.00023288,2]
[311921338,1705500670613,-500.0,0.00023288,2]
[311921339,1705500670623,-500.0,0.00023288,2]
[311921340,1705500670637,-263.16823679,0.00023288,2]
[311921341,1705500670647,-500.0,0.00023288,2]
[311921342,1705500670656,-500.0,0.00023288,2]
[311921343,1705500670666,-500.0,0.00023288,2]
[311921344,1705500670676,-500.0,0.00023288,2]
[311921345,1705500670685,-500.0,0.00023288,2]
[311921346,1705500670695,-500.0,0.00023288,2]
[311921347,1705500670707,-500.0,0.00023288,2]
[311921348,1705500670717,-500.0,0.00023288,2]
[311921349,1705500670726,-500.0,0.00023288,2]
[311921350,1705500670736,-500.0,0.00023288,2]
[311921351,1705500670745,-309.53710685,0.00023288,4]
[311921352,1705500670755,-166.82683811,0.00023288,2]
[311921353,1705500670764,-500.0,0.00023288,4]
[311921354,1705500670773,-267.92574375,0.00023288,4]
[311921355,1705500670783,-500.0,0.00023288,2]
[311921356,1705500670792,-452.3229001,0.00023288,2]
[311921357,1705500670802,-500.0,0.00023288,2]
[311921358,1705500670811,-500.0,0.00023288,2]
[311921359,1705500670821,-500.0,0.00023288,2]
[311921360,1705500670830,-371.6439901,0.00023288,2]
[311921361,1705500670840,-381.72234416,0.00023288,4]
[311921362,1705500670849,-878.70209361,0.00023288,2]
[311921363,1705500670859,-500.0,0.00023288,2]
[311921364,1705500670869,-165.33754924,0.00023288,2]
[311921365,1705500670879,-878.70209361,0.00023288,2]
[311921366,1705500670889,-500.0,0.00023288,2]
[311921367,1705500670898,-500.0,0.00023288,2]
[311921368,1705500670908,-878.70209361,0.00023288,2]
[311921369,1705500670918,-500.0,0.00023288,2]
[311921370,1705500670927,-500.0,0.00023288,2]
[311921371,1705500670937,-878.70209361,0.00023288,2]
[311921372,1705500670947,-878.70209361,0.00023288,2]
[311921373,1705500670957,-228.8081335,0.00023288,2]
[311921374,1705500670966,-500.0,0.00023288,2]
[311921375,1705500670976,-878.70209361,0.00023288,2]
[311921376,1705500670985,-500.0,0.00023288,2]
[311921377,1705500670994,-4581.66376849,0.00023288,2]
[311921378,1705500671004,-500.0,0.00023288,2]
[311921379,1705500671014,-500.0,0.00023288,2]
[311921380,1705500671024,-581.49139972,0.00023288,2]
[311921381,1705500671034,-500.0,0.00023288,2]
[311921382,1705500671045,-150.0,0.00023291,2]
[311921383,1705500671055,-166.87976454,0.00023413,2]
[311921384,1705500671067,-500.0,0.00023455,2]
[311921385,1705500671078,-150.0,0.00023477,2]
[311921386,1705500671089,-150.0,0.0002355,2]
[311921387,1705500671099,-12685.67320866,0.00023552,2]
[311921388,1705500671109,-500.0,0.00023561,2]
[311921389,1705500671119,-500.0,0.00023561,2]
[311921390,1705500671129,-769.26,0.00023561,2]
[311921391,1705500671138,-500.0,0.00023561,2]
[311921392,1705500671148,-500.0,0.00023561,2]
[311921393,1705500671158,-500.0,0.00023561,2]
[311921394,1705500671168,-500.0,0.00023561,2]
[311921395,1705500671178,-500.0,0.00023561,2]
[311921396,1705500671187,-186.52,0.00023561,2]
[311921397,1705500671199,-500.0,0.00023561,2]
[311921398,1705500671209,-255.72,0.00023561,2]
[311921399,1705500671219,-500.0,0.00023561,2]
[311921400,1705500671229,-500.0,0.00023561,2]
[311921401,1705500671239,-500.0,0.00023561,2]
[311921402,1705500671249,-356.07,0.00023561,2]
[311921403,1705500671259,-500.0,0.00023561,2]
[311921404,1705500671270,-500.0,0.00023561,2]
[311921405,1705500671280,-206.1630714,0.00023561,2]
[311921406,1705500671289,-500.0,0.00023561,2]
[311921407,1705500671299,-500.0,0.00023561,2]
[311921408,1705500671310,-647.02,0.00023561,2]
[311921409,1705500671319,-500.0,0.00023561,2]
[311921410,1705500671329,-500.0,0.00023561,2]
[311921411,1705500671339,-1061.96,0.00023561,2]
[311921412,1705500671348,-500.0,0.00023561,2]
[311921413,1705500671358,-500.0,0.00023561,2]
[311921414,1705500671368,-500.0,0.00023561,2]
[311921415,1705500671377,-204.22,0.00023561,2]
[311921416,1705500671387,-736.42,0.00023561,2]
[311921417,1705500671397,-500.0,0.00023561,2]
[311921418,1705500671406,-295.44,0.00023561,2]
[311921419,1705500671415,-525.22,0.00023561,2]
[311921420,1705500671424,-500.0,0.00023561,2]
[311921421,1705500671434,-659.38,0.00023561,2]
[311921422,1705500671443,-500.0,0.00023561,2]
[311921423,1705500671456,-500.0,0.00023561,2]
[311921424,1705500671465,-500.0,0.00023561,2]
[311921425,1705500671475,-500.0,0.00023561,2]
[311921426,1705500671484,-500.0,0.00023561,2]
[311921427,1705500671493,-500.0,0.00023561,2]
[311921428,1705500671502,-500.0,0.00023561,2]
[311921429,1705500671512,-500.0,0.00023561,2]
[311921430,1705500671578,-697.89,0.00023561,2]
[311921431,1705500671587,-500.0,0.00023561,2]
[311921432,1705500671597,-500.0,0.00023561,2]
[311921433,1705500671607,-500.0,0.00023561,2]
[311921434,1705500671616,-500.0,0.00023561,2]
[311921435,1705500671627,-500.0,0.00023561,2]
[311921436,1705500671637,-500.0,0.00023561,2]
[311921437,1705500671647,-500.0,0.00023561,2]
[311921438,1705500671656,-851.76,0.00023561,2]
[311921439,1705500671665,-500.0,0.00023561,2]
[311921440,1705500671674,-2326.95,0.00023561,2]
[311921441,1705500671683,-500.0,0.00023561,2]
[311921442,1705500671692,-500.0,0.00023561,2]
[311921443,1705500671704,-500.0,0.00023561,2]
[311921444,1705500671715,-500.0,0.00023561,2]
[311921445,1705500671725,-648.43,0.00023561,2]
[311921446,1705500671736,-719.66,0.00023561,2]
[311921447,1705500671746,-957.33,0.00023561,2]
[311921448,1705500671755,-1329.33,0.00023561,2]
[311921449,1705500671766,-1070.2,0.00023561,2]
[311921450,1705500671775,-500.0,0.00023561,2]
[311921451,1705500671786,-500.0,0.00023561,2]
[311921452,1705500671796,-500.0,0.00023561,2]
[311921453,1705500671806,-500.0,0.00023561,2]
[311921454,1705500671816,-470.92,0.00023561,2]
[311921455,1705500671826,-500.0,0.00023561,2]
[311921456,1705500671835,-701.53,0.00023561,2]
[311921457,1705500671846,-2426.12,0.00023561,5]
[311921458,1705500671856,-4099.87,0.00023561,2]
[311921459,1705500671867,-931.48,0.00023561,2]
[311921460,1705500671876,-500.0,0.00023561,2]
[311921461,1705500671886,-500.0,0.00023561,2]
[311921462,1705500671896,-529.22,0.00023561,2]
[311921463,1705500671906,-500.0,0.00023561,2]
[311921464,1705500671917,-500.0,0.00023561,2]
[311921465,1705500671926,-500.0,0.00023561,2]
[311921466,1705500671935,-438.75,0.00023561,2]
[311921467,1705500671945,-500.0,0.00023561,2]
[311921468,1705500671955,-500.0,0.00023561,2]
[311921469,1705500671964,-348.72,0.00023561,2]
[311921470,1705500671973,-500.0,0.00023561,2]
[311921471,1705500671982,-500.0,0.00023561,2]
[311921472,1705500671992,-500.0,0.00023561,2]
[311921473,1705500672001,-574.27,0.00023561,2]
[311921474,1705500672011,-2043.77,0.00023561,5]
[311921475,1705500672021,-500.0,0.00023561,2]
[311921476,1705500672031,-500.0,0.00023561,2]
[311921477,1705500672041,-500.0,0.00023561,2]
[311921478,1705500672050,-500.0,0.00023561,2]
[311921479,1705500672060,-850.84,0.00023561,2]
[311921480,1705500672069,-500.0,0.00023561,2]
[311921481,1705500672079,-531.21,0.00023561,2]
[311921482,1705500672088,-959.51,0.00023561,2]
[311921483,1705500672097,-500.0,0.00023561,2]
[311921484,1705500672106,-1073.97,0.00023561,2]
[311921485,1705500672115,-500.0,0.00023561,2]
[311921486,1705500672124,-353.92,0.00023561,2]
[311921487,1705500672134,-500.0,0.00023561,2]
[311921488,1705500672143,-500.0,0.00023561,2]
[311921489,1705500672152,-500.0,0.00023561,2]
[311921490,1705500672161,-500.0,0.00023561,2]
[311921491,1705500672170,-500.0,0.00023561,2]
[311921492,1705500672180,-500.0,0.00023561,2]
[311921493,1705500672190,-500.0,0.00023561,2]
[311921494,1705500672200,-500.0,0.00023561,2]
[311921495,1705500672210,-500.0,0.00023561,2]
[311921496,1705500672219,-500.0,0.00023561,2]
[311921497,1705500672228,-500.0,0.00023561,2]
[311921498,1705500672237,-539.24,0.00023561,2]
[311921499,1705500672247,-150.0,0.00023566,2]
[311921500,1705500672256,-166.87976454,0.00023608,2]
[311921501,1705500672265,-167.34,0.0002361,2]
[311921502,1705500672274,-150.0,0.00023661,2]
[311921503,1705500672282,-150.0,0.00023721,2]
[311921504,1705500672292,-500.0,0.00023729,2]
[311921505,1705500672301,-1000.0,0.00023735,2]
[311921506,1705500672310,-215.00237901,0.000238,2]
[311921507,1705500672319,-166.87976454,0.00023803,2]
[311921508,1705500672329,-500.0,0.00023835,2]
[311921509,1705500672338,-500.0,0.00023835,2]
[311921510,1705500672348,-769.26,0.00023835,2]
[311921511,1705500672357,-500.0,0.00023835,2]
[311921512,1705500672366,-500.0,0.00023835,2]
[311921513,1705500672375,-345.8054176,0.00023835,2]
[311921514,1705500672385,-500.0,0.00023835,2]
[311921515,1705500672394,-160.92,0.00023835,2]
[311921516,1705500672404,-478.9,0.00023835,2]
[311921517,1705500672413,-500.0,0.00023835,2]
[311921518,1705500672423,-500.0,0.00023835,2]
[311921519,1705500672432,-500.0,0.00023835,2]
[311921520,1705500672441,-500.0,0.00023835,2]
[311921521,1705500672451,-500.0,0.00023835,2]
[311921522,1705500672461,-233.39,0.00023835,2]
[311921523,1705500672470,-500.0,0.00023835,2]
[311921524,1705500672479,-647.02,0.00023835,2]
[311921525,1705500672488,-500.0,0.00023835,2]
[311921526,1705500672497,-500.0,0.00023835,2]
[311921527,1705500672507,-1061.96,0.00023835,2]
[311921528,1705500672516,-500.0,0.00023835,2]
[311921529,1705500672525,-500.0,0.00023835,2]
[311921530,1705500672534,-500.0,0.00023835,2]
[311921531,1705500672543,-736.42,0.00023835,2]
[311921532,1705500672552,-500.0,0.00023835,2]
[311921533,1705500672561,-525.22,0.00023835,2]
[311921534,1705500672572,-500.0,0.00023835,2]
[311921535,1705500672581,-659.38,0.00023835,2]
[311921536,1705500672591,-500.0,0.00023835,2]
[311921537,1705500672599,-500.0,0.00023835,2]
[311921538,1705500672608,-500.0,0.00023835,2]
[311921539,1705500672617,-500.0,0.00023835,2]
[311921540,1705500672628,-500.0,0.00023835,2]
[311921541,1705500672641,-500.0,0.00023835,2]
[311921542,1705500672650,-500.0,0.00023835,2]
[311921543,1705500672661,-500.0,0.00023835,2]
[311921544,1705500672670,-697.89,0.00023835,2]
[311921545,1705500672680,-500.0,0.00023835,2]
[311921546,1705500672689,-500.0,0.00023835,2]
[311921547,1705500672700,-500.0,0.00023835,2]
[311921548,1705500672709,-500.0,0.00023835,2]
[311921549,1705500672720,-500.0,0.00023835,2]
[311921550,1705500672730,-500.0,0.00023835,2]
[311921551,1705500672739,-172.72,0.00023835,2]
[311921552,1705500672748,-851.76,0.00023835,2]
[311921553,1705500672758,-500.0,0.00023835,2]
[311921554,1705500672767,-2326.95,0.00023835,2]
[311921555,1705500672777,-500.0,0.00023835,2]
[311921556,1705500672787,-500.0,0.00023835,2]
[311921557,1705500672796,-500.0,0.00023835,2]
[311921558,1705500672806,-500.0,0.00023835,2]
[311921559,1705500672815,-648.43,0.00023835,2]
[311921560,1705500672825,-719.66,0.00023835,2]
[311921561,1705500672835,-957.33,0.00023835,2]
[311921562,1705500672846,-1329.33,0.00023835,2]
[311921563,1705500672856,-1070.2,0.00023835,2]
[311921564,1705500672865,-500.0,0.00023835,2]
[311921565,1705500672875,-500.0,0.00023835,2]
[311921566,1705500672885,-500.0,0.00023835,2]
[311921567,1705500672895,-500.0,0.00023835,2]
[311921568,1705500672904,-500.0,0.00023835,2]
[311921569,1705500672913,-701.53,0.00023835,2]
[311921570,1705500672923,-2426.12,0.00023835,5]
[311921571,1705500672932,-4099.87,0.00023835,2]
[311921572,1705500672942,-931.48,0.00023835,2]
[311921573,1705500672953,-500.0,0.00023835,2]
[311921574,1705500672962,-500.0,0.00023835,2]
[311921575,1705500672971,-500.0,0.00023835,2]
[311921576,1705500672981,-500.0,0.00023835,2]
[311921577,1705500672991,-500.0,0.00023835,2]
[311921578,1705500673000,-500.0,0.00023835,2]
[311921579,1705500673010,-500.0,0.00023835,2]
[311921580,1705500673020,-500.0,0.00023835,2]
[311921581,1705500673029,-500.0,0.00023835,2]
[311921582,1705500673039,-282.87,0.00023835,2]
[311921583,1705500673048,-574.27,0.00023835,2]
[311921584,1705500673058,-2043.77,0.00023835,5]
[311921585,1705500673069,-449.11,0.00023835,2]
[311921586,1705500673079,-471.28,0.00023835,2]
[311921587,1705500673089,-500.0,0.00023835,2]
[311921588,1705500673098,-500.0,0.00023835,2]
[311921589,1705500673108,-500.0,0.00023835,2]
[311921590,1705500673118,-850.84,0.00023835,2]
[311921591,1705500673127,-531.21,0.00023835,2]
[311921592,1705500673137,-959.51,0.00023835,2]
[311921593,1705500673146,-192.71,0.00023835,2]
[311921594,1705500673156,-1073.97,0.00023835,2]
[311921595,1705500673165,-500.0,0.00023835,2]
[311921596,1705500673175,-500.0,0.00023835,2]
[311921597,1705500673185,-500.0,0.00023835,2]
[311921598,1705500673195,-500.0,0.00023835,2]
[311921599,1705500673207,-500.0,0.00023835,2]
[311921600,1705500673217,-322.47,0.00023835,2]
[311921601,1705500673227,-500.0,0.00023835,2]
[311921602,1705500673236,-500.0,0.00023835,2]
[311921603,1705500673246,-500.0,0.00023835,2]
[311921604,1705500673255,-500.0,0.00023835,2]
[311921605,1705500673264,-587.01,0.00023835,2]
[311921606,1705500673273,-500.0,0.00023835,2]
[311921607,1705500673282,-539.24,0.00023835,2]
[311921608,1705500673291,-2112.227,0.00023845,2]
[311921609,1705500673300,-2067.426,0.00023845,2]
[311921610,1705500673310,-2273.0,0.00023845,2]
[311921611,1705500673319,-2530.299,0.00023845,2]
[311921612,1705500673328,-19701.0,0.00023845,2]
[311921613,1705500673338,-2237.344,0.00023845,2]
[311921614,1705500673347,-2905.0,0.00023845,2]
[311921615,1705500673356,-1347.289,0.00023845,2]
[311921616,1705500673366,-150.0,0.00023845,2]
[311921617,1705500673375,-1029.0,0.00023845,2]
[311921618,1705500673384,-165.11,0.0002387,2]
[311921619,1705500673393,-150.0,0.00023913,2]
[311921620,1705500673402,-1169.07,0.0002399,2]
[311921621,1705500673412,-166.87976454,0.00023997,2]
[311921622,1705500673421,-201.09439878,0.00024,2]
[311921623,1705500673430,-431.45808483,0.00024,2]
[311921624,1705500673440,-155.2852582,0.00024,2]
[311921625,1705500673451,-500.0,0.00024003,2]
[311921626,1705500673460,-2000.0,0.00024046,2]
[311921627,1705500673469,-167.34,0.00024047,2]
[311921628,1705500673479,-150.0,0.00024105,2]
[311921629,1705500673489,-639.39,0.00024109,2]
[311921630,1705500673498,-562.85248851,0.00024109,2]
[311921631,1705500673507,-769.26,0.00024109,2]
[311921632,1705500673517,-500.0,0.00024109,2]
[311921633,1705500673526,-500.0,0.00024109,2]
[311921634,1705500673535,-500.0,0.00024109,2]
[311921635,1705500673545,-500.0,0.00024109,2]
[311921636,1705500673554,-500.0,0.00024109,2]
[311921637,1705500673563,-500.0,0.00024109,2]
[311921638,1705500673573,-500.0,0.00024109,2]
[311921639,1705500673582,-176.16,0.00024109,2]
[311921640,1705500673592,-647.02,0.00024109,2]
[311921641,1705500673601,-432.9,0.00024109,2]
[311921642,1705500673611,-398.02,0.00024109,2]
[311921643,1705500673620,-1061.96,0.00024109,2]
[311921644,1705500673630,-554.82,0.00024109,2]
[311921645,1705500673642,-500.0,0.00024109,2]
[311921646,1705500673651,-500.0,0.00024109,2]
[311921647,1705500673661,-736.42,0.00024109,2]
[311921648,1705500673670,-500.0,0.00024109,2]
[311921649,1705500673681,-525.22,0.00024109,2]
[311921650,1705500673691,-500.0,0.00024109,2]
[311921651,1705500673701,-659.38,0.00024109,2]
[311921652,1705500673711,-500.0,0.00024109,2]
[311921653,1705500673720,-500.0,0.00024109,2]
[311921654,1705500673729,-500.0,0.00024109,2]
[311921655,1705500673738,-500.0,0.00024109,2]
[311921656,1705500673747,-500.0,0.00024109,2]
[311921657,1705500673757,-500.0,0.00024109,2]
[311921658,1705500673766,-500.0,0.00024109,2]
[311921659,1705500673775,-500.0,0.00024109,2]
[311921660,1705500673785,-697.89,0.00024109,2]
[311921661,1705500673794,-500.0,0.00024109,2]
[311921662,1705500673804,-500.0,0.00024109,2]
[311921663,1705500673813,-500.0,0.00024109,2]
[311921664,1705500673823,-500.0,0.00024109,2]
[311921665,1705500673832,-500.0,0.00024109,2]
[311921666,1705500673841,-500.0,0.00024109,2]
[311921667,1705500673851,-851.76,0.00024109,2]
[311921668,1705500673861,-212.61,0.00024109,2]
[311921669,1705500673871,-2326.95,0.00024109,2]
[311921670,1705500673880,-500.0,0.00024109,2]
[311921671,1705500673890,-500.0,0.00024109,2]
[311921672,1705500673899,-580.31,0.00024109,2]
[311921673,1705500673909,-500.0,0.00024109,2]
[311921674,1705500673919,-648.43,0.00024109,2]
[311921675,1705500673928,-719.66,0.00024109,2]
[311921676,1705500673937,-957.33,0.00024109,2]
[311921677,1705500673947,-1329.33,0.00024109,2]
[311921678,1705500673957,-1070.2,0.00024109,2]
[311921679,1705500673967,-500.0,0.00024109,2]
[311921680,1705500673977,-500.0,0.00024109,2]
[311921681,1705500673987,-500.0,0.00024109,2]
[311921682,1705500673996,-500.0,0.00024109,2]
[311921683,1705500674006,-500.0,0.00024109,2]
[311921684,1705500674015,-701.53,0.00024109,2]
[311921685,1705500674026,-2426.12,0.00024109,5]
[311921686,1705500674036,-4099.87,0.00024109,2]
[311921687,1705500674046,-931.48,0.00024109,2]
[311921688,1705500674056,-500.0,0.00024109,2]
[311921689,1705500674065,-500.0,0.00024109,2]
[311921690,1705500674074,-500.0,0.00024109,2]
[311921691,1705500674084,-500.0,0.00024109,2]
[311921692,1705500674093,-500.0,0.00024109,2]
[311921693,1705500674103,-500.0,0.00024109,2]
[311921694,1705500674112,-500.0,0.00024109,2]
[311921695,1705500674121,-500.0,0.00024109,2]
[311921696,1705500674131,-500.0,0.00024109,2]
[311921697,1705500674140,-574.27,0.00024109,2]
[311921698,1705500674150,-2043.77,0.00024109,5]
[311921699,1705500674160,-500.0,0.00024109,2]
[311921700,1705500674169,-500.0,0.00024109,2]
[311921701,1705500674180,-500.0,0.00024109,2]
[311921702,1705500674189,-850.84,0.00024109,2]
[311921703,1705500674200,-959.51,0.00024109,2]
[311921704,1705500674209,-531.21,0.00024109,2]
[311921705,1705500674218,-1073.97,0.00024109,2]
[311921706,1705500674227,-500.0,0.00024109,2]
[311921707,1705500674236,-500.0,0.00024109,2]
[311921708,1705500674245,-500.0,0.00024109,2]
[311921709,1705500674255,-500.0,0.00024109,2]
[311921710,1705500674264,-500.0,0.00024109,2]
[311921711,1705500674274,-182.42,0.00024109,2]
[311921712,1705500674284,-500.0,0.00024109,2]
[311921713,1705500674294,-586.28,0.00024109,2]
[311921714,1705500674303,-500.0,0.00024109,2]
[311921715,1705500674312,-500.0,0.00024109,2]
[311921716,1705500674321,-539.24,0.00024109,2]
[311921717,1705500674331,-150.0,0.00024151,2]
[311921718,1705500674340,-150.0,0.00024154,2]
[311921719,1705500674350,-162.03,0.00024171,2]
[311921720,1705500674359,-150.0,0.00024185,2]
[311921721,1705500674369,-150.0,0.00024191,2]
[311921722,1705500674378,-166.87976454,0.00024192,2]
[311921723,1705500674388,-150.0,0.0002424,2]
[311921724,1705500674398,-500.0,0.00024277,2]
[311921725,1705500674407,-150.0,0.00024284,2]
[311921726,1705500674417,-167.0,0.00024297,2]
[311921727,1705500674427,-167.0,0.00024297,2]
[311921728,1705500674436,-150.0,0.00024309,2]
[311921729,1705500674446,-150.0,0.00024321,2]
[311921730,1705500674456,-150.0,0.00024324,2]
[311921731,1705500674466,-150.0,0.00024361,2]
[311921732,1705500674475,-150.0,0.0002437,2]
[311921733,1705500674485,-769.26,0.00024383,2]
[311921734,1705500674495,-500.0,0.00024383,2]
[311921735,1705500674505,-500.0,0.00024383,2]
[311921736,1705500674514,-247.58,0.00024383,2]
[311921737,1705500674525,-500.0,0.00024383,2]
[311921738,1705500674535,-500.0,0.00024383,2]
[311921739,1705500674545,-500.0,0.00024383,2]
[311921740,1705500674555,-500.0,0.00024383,2]
[311921741,1705500674564,-647.02,0.00024383,2]
[311921742,1705500674574,-1061.96,0.00024383,2]
[311921743,1705500674585,-500.0,0.00024383,2]
[311921744,1705500674594,-500.0,0.00024383,2]
[311921745,1705500674604,-736.42,0.00024383,2]
[311921746,1705500674614,-500.0,0.00024383,2]
[311921747,1705500674625,-525.22,0.00024383,2]
[311921748,1705500674636,-500.0,0.00024383,2]